bitfinex/quotes_SOLUSD_20230905
["timestamp","ask_amount","ask_price","bid_price","bid_amount"]
[1693882995906,34.307,19.238,19.23,55.0]
[1693882996198,34.307,19.238,19.229,20.0]
[1693882996199,34.307,19.238,19.226,6.491]
[1693882996381,2.03302571,19.237,19.226,6.491]
[1693882996697,8.11,19.234,19.225,6.491]
[1693882997395,8.11,19.234,19.224,6.491]
[1693882997584,8.11,19.234,19.221,108.73510717]
[1693882998383,8.11,19.234,19.222,55.0]
[1693882998592,8.11,19.234,19.225,6.491]
[1693882998799,8.105,19.246,19.226,305.0]
[1693882998983,8.106,19.245,19.227,1.022685]
[1693882999502,8.106,19.245,19.23,6.489]
[1693882999696,8.106,19.245,19.227,21.991685]
[1693882999697,45.12,19.24,19.227,6.49]
[1693882999897,8.109,19.237,19.225,20.972]
[1693883000224,8.109,19.237,19.226,6.49]
[1693883000492,45.12,19.24,19.214,20.983]
[1693883000493,34.319,19.231,19.214,20.983]
[1693883000693,8.114,19.226,19.218,6.493]
[1693883000895,8.113,19.227,19.217,6.494]
[1693883001403,8.113,19.227,19.215,20.983]
[1693883001404,34.326,19.227,19.215,6.494]
[1693883001693,34.326,19.227,19.2,97.2]
[1693883001694,91.537,19.227,19.19,102.29447]
[1693883001895,152.65630307,19.226,19.204,20.995]
[1693883002098,152.65630307,19.226,19.205,1.022685]
[1693883002099,79.459,19.22,19.205,1.022685]
[1693883002299,79.459,19.22,19.204,6.498]
[1693883002487,79.459,19.22,19.199,26.1021284]
[1693883002488,75.0,19.219,19.205,6.498]
[1693883002799,1.65302188,19.218,19.201,45.829]
[1693883003194,20.0,19.219,19.205,6.498]
[1693883005197,45.12,19.22,19.205,6.498]
[1693883005494,75.0,19.219,19.205,6.498]
[1693883007294,1.53383857,19.218,19.205,6.498]
[1693883008597,1.53383857,19.218,19.197,26.1021284]
[1693883008598,1.53383857,19.218,19.193,41.17377731]
[1693883008804,1.53383857,19.218,19.195,7.16108173]
[1693883008805,26.1021284,19.217,19.195,7.16108173]
[1693883009005,57.24536576,19.216,19.195,48.16608173]
[1693883009194,149.49826576,19.216,19.195,47.506]
[1693883009393,8.119,19.214,19.196,0.76929233]
[1693883009595,57.24536576,19.213,19.201,27.497]
[1693883009789,63.119,19.213,19.201,27.497]
[1693883010594,89.351,19.213,19.201,6.499]
[1693883010798,63.119,19.213,19.201,6.499]
[1693883014211,8.119,19.213,19.201,6.499]
[1693883014503,8.119,19.213,19.195,20.0]
[1693883014714,8.121,19.21,19.2,6.499]
[1693883015234,55.0,19.212,19.2,6.499]
[1693883015235,8.12,19.211,19.2,6.499]
[1693883015806,45.12,19.21,19.2,6.499]
[1693883016111,92.2529,19.216,19.2,6.499]
[1693883016314,8.12,19.212,19.2,6.499]
[1693883016699,107.6741,19.212,19.2,6.499]
[1693883018113,99.5541,19.212,19.2,6.499]
[1693883020014,107.6741,19.212,19.2,6.499]
[1693883020403,55.0,19.211,19.2,6.499]
[1693883020713,90.24,19.21,19.18,391.5]
[1693883020920,8.124,19.203,19.189,24.075]
[1693883021211,26.244,19.204,19.189,24.075]
[1693883021212,12.04592536,19.202,19.189,24.075]
[1693883021414,8.123,19.204,19.189,24.075]
[1693883021619,3.92192536,19.202,19.189,24.075]
[1693883021815,45.12,19.2,19.189,24.075]
[1693883022014,99.0734,19.199,19.192,5.689]
[1693883032421,55.0,19.198,19.19,20.0]
[1693883032726,55.0,19.198,19.191,5.69]
[1693883032922,55.0,19.198,19.189,18.385]
[1693883032923,55.0,19.198,19.189,5.69]
[1693883033131,3.52509909,19.197,19.185,5.691]
[1693883033316,8.127,19.195,19.185,5.691]
[1693883033511,3.52509909,19.194,19.185,5.691]
[1693883033712,11.65209909,19.194,19.185,5.691]
[1693883033907,8.127,19.194,19.185,5.691]
[1693883034319,1.45490108,19.193,19.185,5.691]
[1693883035419,9.58290108,19.193,19.185,5.691]
[1693883035619,8.128,19.193,19.185,5.691]
[1693883039933,8.128,19.193,19.18,18.393]
[1693883040134,8.128,19.193,19.178,40.149]
[1693883040325,8.128,19.193,19.182,5.692]
[1693883040523,26.1021284,19.198,19.182,5.692]
[1693883040524,453.60850723,19.208,19.186,250.0]
[1693883040714,453.60850723,19.208,19.183,0.50132092]
[1693883040715,106.60962418,19.207,19.19,136.787]
[1693883040916,106.60962418,19.207,19.19,64.198]
[1693883041114,106.60962418,19.207,19.19,5.69]
[1693883041115,11.14942418,19.207,19.19,5.69]
[1693883041327,8.124,19.202,19.19,5.69]
[1693883041522,3.02742418,19.199,19.19,5.69]
[1693883042328,63.125,19.199,19.189,5.69]
[1693883042535,63.125,19.199,19.186,18.388]
[1693883042536,63.125,19.199,19.19,25.69]
[1693883042830,63.125,19.199,19.184,40.136]
[1693883042831,1.63595017,19.198,19.184,40.136]
[1693883043033,45.12,19.19,19.178,40.15]
[1693883043228,53.249,19.19,19.181,5.693]
[1693883043538,55.0,19.189,19.181,5.693]
[1693883043836,55.0,19.189,19.166,250.0]
[1693883043837,89.394,19.189,19.173,5.695]
[1693883044137,95.6959,19.188,19.173,5.695]
[1693883044322,8.131,19.184,19.173,5.695]
[1693883044524,55.0,19.183,19.173,5.695]
[1693883044738,63.132,19.183,19.173,5.695]
[1693883045639,63.132,19.183,19.171,6.509]
[1693883045821,8.134,19.178,19.162,42.73761084]
[1693883046223,55.0,19.177,19.167,6.51]
[1693883046439,8.136,19.174,19.167,6.51]
[1693883046933,26.285,19.175,19.159,42.53312466]
[1693883047234,63.136,19.174,19.16,26.513]
[1693883047533,63.136,19.174,19.16,6.513]
[1693883047741,8.138,19.167,19.16,6.513]
[1693883048238,8.138,19.169,19.16,6.513]
[1693883048737,8.137,19.172,19.16,6.513]
[1693883049119,57.358,19.178,19.16,6.513]
[1693883049120,8.136,19.173,19.16,6.513]
[1693883049318,8.136,19.174,19.16,6.513]
[1693883049742,8.136,19.174,19.161,55.0]
[1693883050042,8.136,19.174,19.164,73.466]
[1693883050234,8.135,19.175,19.164,73.466]
[1693883050435,63.136,19.174,19.164,6.511]
[1693883051335,109.064,19.174,19.162,6.512]
[1693883054441,45.12,19.17,19.154,6.515]
[1693883054642,91.831,19.166,19.154,6.515]
[1693883054943,90.7063,19.165,19.154,6.515]
[1693883055251,8.141,19.162,19.154,6.515]
[1693883056351,8.141,19.162,19.153,6.515]
[1693883056826,117.0043,19.165,19.153,6.515]
[1693883057031,90.7063,19.165,19.153,6.515]
[1693883057445,65.542,19.163,19.15,6.516]
[1693883057751,65.542,19.163,19.146,67.38881246]
[1693883057752,45.12,19.16,19.146,6.518]
[1693883057951,34.453,19.156,19.146,6.518]
[1693883058248,55.0,19.155,19.145,6.518]
[1693883058445,8.145,19.152,19.145,6.518]
[1693883058745,8.145,19.153,19.145,6.518]
[1693883059441,8.145,19.153,19.143,21.061]
[1693883059647,76.75659759,19.152,19.137,21.068]
[1693883059847,8.146,19.15,19.14,6.52]
[1693883060150,22.94396536,19.149,19.139,6.52]
[1693883060448,31.08996536,19.149,19.139,6.52]
[1693883061447,11.08996536,19.149,19.139,6.52]
[1693883062345,2.94396536,19.15,19.14,20.0]
[1693883062539,34.464,19.15,19.135,21.07]
[1693883062740,2.94396536,19.149,19.137,21.069]
[1693883062948,8.147,19.148,19.139,6.52]
[1693883063150,8.147,19.148,19.14,20.0]
[1693883063931,8.147,19.148,19.139,26.52]
[1693883064743,1.55792554,19.147,19.139,26.52]
[1693883064949,8.147,19.148,19.139,26.52]
[1693883065347,1.50595979,19.147,19.139,26.52]
[1693883065545,9.65295979,19.147,19.139,20.0]
[1693883065751,8.147,19.147,19.139,20.0]
[1693883066445,3.03898183,19.151,19.14,55.0]
[1693883066749,8.145,19.151,19.142,5.704]
[1693883066948,3.03898183,19.15,19.139,5.705]
[1693883067149,8.147,19.148,19.139,5.705]
[1693883067351,3.03898183,19.147,19.139,5.705]
[1693883067849,3.03898183,19.147,19.14,20.0]
[1693883068057,3.03898183,19.148,19.142,5.704]
[1693883068246,11.18498183,19.15,19.141,5.704]
[1693883068643,11.18498183,19.15,19.132,5.707]
[1693883068644,26.1021284,19.149,19.132,5.707]
[1693883068845,34.474,19.144,19.129,18.443]
[1693883069038,3.92192536,19.143,19.126,40.257]
[1693883069244,3.92192536,19.143,19.123,56.82863112]
[1693883069445,12.06992536,19.145,19.123,15.47021943]
[1693883069645,3.92192536,19.145,19.123,27.56691943]
[1693883069851,3.92192536,19.145,19.124,20.0]
[1693883070655,3.92192536,19.145,19.125,12.09544]
[1693883070859,3.92192536,19.145,19.132,96.956]
[1693883071156,3.92192536,19.144,19.132,24.147]
[1693883071352,8.15,19.141,19.132,5.707]
[1693883071658,8.15,19.141,19.129,18.442]
[1693883071659,8.149,19.143,19.133,60.707]
[1693883071844,1.71008477,19.142,19.133,60.707]
[1693883072046,8.148,19.146,19.133,60.707]
[1693883072250,3.03902606,19.145,19.133,60.707]
[1693883072456,11.18702606,19.145,19.133,60.707]
[1693883072851,3.03902606,19.145,19.133,60.707]
[1693883073053,3.03902606,19.146,19.133,60.707]
[1693883073547,3.03902606,19.147,19.133,60.707]
[1693883073758,3.03902606,19.147,19.134,20.0]
[1693883073954,3.03902606,19.151,19.137,137.16]
[1693883074154,3.03902606,19.153,19.138,75.0]
[1693883074356,11.18302606,19.154,19.142,24.134]
[1693883074656,8.144,19.154,19.144,5.703]
[1693883074860,1.46659986,19.153,19.144,5.703]
[1693883075359,9.61159986,19.153,19.144,5.703]
[1693883075550,8.145,19.153,19.145,55.0]
[1693883075751,8.145,19.153,19.145,60.703]
[1693883075946,8.143,19.156,19.145,60.703]
[1693883076141,2.20020663,19.155,19.145,60.703]
[1693883076965,10.34420663,19.155,19.145,60.703]
[1693883077349,2.20020663,19.155,19.145,60.703]
[1693883077550,97.4429,19.157,19.145,60.703]
[1693883077551,10.36008594,19.156,19.145,60.703]
[1693883078658,10.36008594,19.156,19.141,5.704]
[1693883078864,10.36008594,19.156,19.143,5.704]
[1693883079961,10.36008594,19.156,19.142,5.704]
[1693883080659,10.36008594,19.156,19.141,5.704]
[1693883080959,10.36008594,19.156,19.142,60.704]
[1693883081174,10.36008594,19.156,19.138,38.434]
[1693883081175,140.34521434,19.156,19.138,20.0]
[1693883081460,91.907,19.15,19.136,5.706]
[1693883081664,91.907,19.15,19.137,25.706]
[1693883081665,3.35727769,19.149,19.137,25.706]
[1693883081847,8.148,19.146,19.138,20.0]
[1693883082858,34.472,19.146,19.128,40.255]
[1693883083076,2.92485864,19.145,19.133,5.707]
[1693883083369,8.149,19.142,19.133,5.707]
[1693883083750,8.149,19.143,19.133,5.707]
[1693883084064,8.148,19.144,19.133,5.707]
[1693883084371,1.54774765,19.143,19.133,5.707]
[1693883084554,9.69674765,19.143,19.133,5.707]
[1693883084753,8.149,19.143,19.133,5.707]
[1693883085265,121.9321,19.149,19.133,5.707]
[1693883085462,2.91013382,19.148,19.133,5.707]
[1693883086267,2.91013382,19.148,19.134,55.0]
[1693883086466,8.148,19.146,19.137,5.706]
[1693883086669,2.91013382,19.145,19.138,55.0]
[1693883086866,8.148,19.145,19.138,55.0]
[1693883087269,8.148,19.145,19.137,55.0]
[1693883089772,8.148,19.145,19.137,60.706]
[1693883089971,98.7503,19.152,19.137,60.706]
[1693883090282,8.147,19.148,19.137,60.706]
[1693883090473,8.146,19.149,19.137,60.706]
[1693883090772,8.145,19.152,19.142,5.704]
[1693883090976,8.145,19.152,19.143,55.0]
[1693883091274,1.50840269,19.151,19.143,55.0]
[1693883091467,8.146,19.15,19.143,55.0]
[1693883093273,8.145,19.153,19.143,60.704]
[1693883093477,1.56329367,19.152,19.143,60.704]
[1693883093870,1.56329367,19.152,19.143,79.133]
[1693883094070,2.12098481,19.153,19.143,79.133]
[1693883094675,2.12098481,19.156,19.143,79.133]
[1693883094875,2.12098481,19.157,19.143,151.901]
[1693883095176,453.60850723,19.159,19.143,151.901]
[1693883095177,2.20470276,19.158,19.143,151.901]
[1693883096465,2.20470276,19.158,19.143,178.0031284]
[1693883096667,461.75050723,19.159,19.144,26.1021284]
[1693883096860,2.01400556,19.158,19.148,24.126]
[1693883097271,2.01400556,19.158,19.149,55.0]
[1693883097579,8.142,19.158,19.15,5.702]
[1693883097784,8.142,19.158,19.151,55.0]
[1693883097972,453.60850723,19.159,19.151,55.0]
[1693883097973,461.75050723,19.159,19.151,55.0]
[1693883100182,461.75050723,19.159,19.15,55.0]
[1693883100569,1.90282249,19.158,19.15,55.0]
[1693883100767,8.143,19.157,19.15,55.0]
[1693883101790,8.143,19.157,19.149,55.0]
[1693883102977,8.142,19.158,19.149,60.702]
[1693883103481,8.142,19.158,19.15,20.0]
[1693883103674,8.142,19.158,19.151,55.0]
[1693883104285,453.60850723,19.159,19.151,55.0]
[1693883104286,461.75050723,19.159,19.151,55.0]
[1693883104480,461.75050723,19.159,19.151,60.702]
[1693883104974,453.60850723,19.159,19.151,60.702]
[1693883105583,461.75050723,19.159,19.151,60.702]
[1693883105787,461.75050723,19.159,19.151,55.0]
[1693883106177,461.75050723,19.159,19.144,41.71279372]
[1693883106374,56.79536304,19.158,19.138,42.31853784]
[1693883106672,91.895,19.152,19.139,20.0]
[1693883107370,91.895,19.152,19.137,5.705]
[1693883107578,1.49528191,19.151,19.133,15.96294363]
[1693883107887,65.601,19.146,19.13,41.14822546]
[1693883108097,1.68751417,19.145,19.132,5.707]
[1693883108304,34.48,19.142,19.132,5.707]
[1693883108876,34.48,19.142,19.126,66.3581284]
[1693883109077,34.48,19.142,19.13,5.708]
[1693883109282,8.15,19.142,19.13,5.708]
[1693883109494,8.15,19.142,19.13,24.15]
[1693883109883,45.12,19.14,19.118,40.275]
[1693883110191,45.12,19.14,19.119,0.10725525]
[1693883110192,34.494,19.134,19.119,0.10725525]
[1693883110377,34.494,19.134,19.121,5.71]
[1693883110773,8.153,19.134,19.121,5.71]
[1693883111199,91.2375,19.133,19.121,5.71]
[1693883111390,6.154,19.131,19.121,5.71]
[1693883112099,99.3905,19.132,19.121,5.71]
[1693883115795,45.12,19.13,19.12,5.711]
[1693883115995,8.155,19.128,19.12,5.711]
[1693883117402,91.2375,19.132,19.121,55.0]
[1693883117585,8.155,19.129,19.122,5.71]
[1693883118408,98.9797,19.131,19.122,24.159]
[1693883118588,107.1337,19.131,19.122,24.159]
[1693883118905,8.154,19.131,19.122,5.71]
[1693883123109,8.154,19.131,19.124,5.71]
[1693883123407,8.154,19.131,19.123,5.71]
[1693883126205,8.154,19.132,19.124,55.0]
[1693883126513,8.153,19.133,19.126,5.709]
[1693883131717,8.153,19.135,19.126,5.709]
[1693883134214,55.0,19.138,19.126,5.709]
[1693883134510,8.152,19.137,19.131,1.01852299]
[1693883135714,8.152,19.137,19.131,6.72552299]
[1693883135909,8.152,19.137,19.131,1.01852299]
[1693883136414,8.151,19.138,19.131,6.72552299]
[1693883137198,107.1307,19.139,19.131,6.72552299]
[1693883137399,98.9797,19.139,19.131,6.72552299]
[1693883138218,8.151,19.139,19.131,6.72552299]
[1693883138618,8.15,19.14,19.131,6.72552299]
[1693883139502,8.15,19.14,19.134,5.706]
[1693883140322,105.5454,19.141,19.134,5.706]
[1693883140918,97.3954,19.141,19.134,5.706]
[1693883142325,105.5454,19.141,19.134,5.706]
[1693883142816,105.5454,19.141,19.133,5.707]
[1693883143705,97.3954,19.141,19.133,5.707]
[1693883143905,97.3954,19.141,19.136,5.706]
[1693883144428,105.5454,19.141,19.135,5.706]
[1693883144626,97.3954,19.141,19.135,5.706]
[1693883144934,105.5454,19.141,19.134,55.0]
[1693883145422,105.5454,19.141,19.134,60.707]
[1693883150530,105.5454,19.141,19.131,1.01852299]
[1693883150531,131.8754,19.141,19.131,1.01852299]
[1693883150712,20.0,19.14,19.131,1.01852299]
[1693883151023,34.487,19.138,19.131,1.01852299]
[1693883151522,34.487,19.138,19.131,6.72552299]
[1693883151912,34.487,19.138,19.132,55.0]
[1693883153126,34.487,19.138,19.131,56.01852299]
[1693883153827,34.487,19.138,19.131,61.72552299]
[1693883154830,34.487,19.138,19.131,56.01852299]
[1693883155615,34.487,19.138,19.131,1.01852299]
[1693883158630,34.487,19.138,19.13,60.708]
[1693883159429,8.151,19.138,19.13,60.708]
[1693883161335,34.486,19.138,19.13,60.708]
[1693883163831,8.151,19.138,19.13,60.708]
[1693883165324,20.0,19.14,19.13,60.708]
[1693883165523,28.15,19.14,19.13,60.708]
[1693883166615,8.15,19.14,19.13,60.708]
[1693883167233,94.8245,19.147,19.13,60.708]
[1693883167437,94.8245,19.147,19.13,88.038]
[1693883167638,102.9715,19.147,19.13,114.1401284]
[1693883169431,94.8245,19.147,19.13,114.1401284]
[1693883169633,102.9715,19.147,19.13,114.1401284]
[1693883171637,1.51700844,19.146,19.13,114.1401284]
[1693883171839,8.148,19.145,19.13,114.1401284]
[1693883173343,8.148,19.146,19.13,114.1401284]
[1693883173726,8.148,19.146,19.131,26.1021284]
[1693883173942,26.314,19.153,19.132,55.0]
[1693883174240,26.314,19.153,19.138,137.157]
[1693883174241,96.1181,19.152,19.138,137.157]
[1693883174430,104.2631,19.152,19.139,75.0]
[1693883174628,104.2631,19.152,19.142,24.134]
[1693883174845,8.145,19.152,19.143,55.0]
[1693883175028,8.145,19.152,19.145,5.703]
[1693883176545,57.423,19.157,19.145,24.13]
[1693883176546,1.75339332,19.157,19.145,24.13]
[1693883176738,8.143,19.157,19.149,5.702]
[1693883176939,453.60850723,19.159,19.15,55.0]
[1693883177136,453.60850723,19.159,19.152,5.701]
[1693883177329,2.02762096,19.158,19.151,5.701]
[1693883177631,8.143,19.157,19.151,5.701]
[1693883182937,1.48222049,19.158,19.151,5.701]
[1693883183149,1.48222049,19.158,19.151,24.123]
[1693883183332,8.142,19.158,19.151,24.123]
[1693883183533,461.75050723,19.159,19.151,24.123]
[1693883183730,453.60850723,19.159,19.151,24.123]
[1693883184345,461.75050723,19.159,19.151,24.123]
[1693883184548,461.75050723,19.159,19.151,5.701]
[1693883185751,453.60850723,19.159,19.151,5.701]
[1693883187352,461.75050723,19.159,19.151,5.701]
[1693883187556,453.60850723,19.159,19.151,5.701]
[1693883188256,461.75050723,19.159,19.151,5.701]
[1693883189347,453.60850723,19.159,19.151,5.701]
[1693883190451,461.75050723,19.159,19.151,5.701]
[1693883191762,453.60850723,19.159,19.151,5.701]
[1693883193358,461.75050723,19.159,19.151,5.701]
[1693883195062,453.60850723,19.159,19.151,5.701]
[1693883199759,453.60850723,19.159,19.152,55.0]
[1693883199960,453.60850723,19.159,19.154,5.701]
[1693883201977,453.60850723,19.159,19.154,24.12]
[1693883202375,453.60850723,19.159,19.154,5.701]
[1693883203479,8.141,19.161,19.152,73.42]
[1693883203480,97.8807,19.162,19.157,64.309]
[1693883204084,97.8807,19.162,19.159,5.699]
[1693883204287,8.139,19.166,19.159,5.699]
[1693883205083,8.139,19.167,19.159,5.699]
[1693883209587,105.1017,19.168,19.159,5.699]
[1693883210783,1.8456568,19.167,19.151,57.15665794]
[1693883210992,34.442,19.163,19.148,82.5126263]
[1693883211193,27.27,19.16,19.149,20.0]
[1693883211388,8.143,19.157,19.15,5.702]
[1693883211588,8.142,19.159,19.15,5.702]
[1693883211892,8.142,19.16,19.15,5.702]
[1693883213090,101.5354,19.161,19.15,5.702]
[1693883213594,101.5354,19.161,19.151,55.0]
[1693883213893,101.5354,19.161,19.154,5.701]
[1693883214078,8.141,19.161,19.154,5.701]
[1693883220907,27.27,19.16,19.149,20.0]
[1693883221100,8.142,19.158,19.151,5.702]
[1693883224600,8.142,19.158,19.142,1.01793766]
[1693883224601,34.449,19.158,19.142,1.01793766]
[1693883224803,56.84330327,19.157,19.142,1.01793766]
[1693883225010,34.459,19.153,19.144,5.704]
[1693883225307,8.145,19.153,19.144,5.704]
[1693883225505,1.49100937,19.152,19.144,5.704]
[1693883225711,8.145,19.152,19.144,5.704]
[1693883225891,57.425,19.156,19.144,5.704]
[1693883226096,8.144,19.154,19.144,5.704]
[1693883227707,8.144,19.154,19.142,34.91296897]
[1693883227905,2.17505412,19.153,19.144,5.703]
[1693883228910,8.144,19.153,19.144,5.703]
[1693883229916,55.0,19.157,19.142,1.01793766]
[1693883230112,8.145,19.153,19.142,1.01793766]
[1693883230309,2.53065274,19.152,19.142,6.72193766]
[1693883230507,2.53065274,19.153,19.142,6.72193766]
[1693883230700,8.144,19.154,19.142,6.72193766]
[1693883232422,8.143,19.156,19.143,55.0]
[1693883232716,1.54974789,19.157,19.147,24.128]
[1693883233215,1.65012121,19.158,19.147,24.128]
[1693883233604,8.143,19.157,19.147,24.128]
[1693883237016,134.89193144,19.156,19.142,1.01793766]
[1693883237216,27.27,19.15,19.142,1.01793766]
[1693883237519,195.845,19.148,19.142,1.01793766]
[1693883237817,114.47066835,19.147,19.142,1.01793766]
[1693883238117,3.92192536,19.145,19.142,1.01793766]
[1693883238319,195.882,19.144,19.142,1.01793766]
[1693883238520,67.07092536,19.143,19.142,1.01793766]
[1693883238719,12.07092536,19.143,19.142,1.01793766]
[1693883239217,8.149,19.143,19.142,1.01793766]
[1693883240500,9.77662606,19.143,19.142,1.01793766]
[1693883240707,8.149,19.143,19.142,1.01793766]
[1693883241306,10.10208535,19.143,19.142,1.01793766]
[1693883245024,8.149,19.143,19.142,1.01793766]
[1693883246623,9.66189851,19.143,19.142,1.01793766]
[1693883249438,8.149,19.143,19.142,1.01793766]
[1693883253138,9.59866472,19.143,19.142,1.01793766]
[1693883253337,8.149,19.143,19.142,1.01793766]
[1693883258244,78.348722,19.148,19.142,1.01793766]
[1693883258245,8.149,19.144,19.142,1.01793766]
[1693883258545,1.61496495,19.143,19.142,1.01793766]
[1693883258841,8.149,19.143,19.142,1.01793766]
[1693883271575,8.148,19.144,19.142,1.01793766]
[1693883272568,1.52124417,19.143,19.142,1.01793766]
[1693883272768,9.67024417,19.143,19.142,1.01793766]
[1693883273074,8.149,19.143,19.142,1.01793766]
[1693883273778,9.79188041,19.143,19.142,1.01793766]
[1693883273972,8.149,19.143,19.142,1.01793766]
[1693883282475,63.149,19.143,19.142,1.01793766]
[1693883283473,65.02139142,19.143,19.142,1.01793766]
[1693883283677,63.149,19.143,19.142,1.01793766]
[1693883283874,64.69249574,19.143,19.142,1.01793766]
[1693883284167,8.149,19.143,19.142,1.01793766]
[1693883286084,63.149,19.143,19.142,1.01793766]
[1693883292585,64.65957775,19.143,19.142,1.01793766]
[1693883293295,63.149,19.143,19.142,1.01793766]
[1693883293692,64.74689134,19.143,19.142,1.01793766]
[1693883293894,84.74689134,19.143,19.142,1.01793766]
[1693883294096,64.74689134,19.143,19.142,1.01793766]
[1693883294482,63.149,19.143,19.142,1.01793766]
[1693883296085,8.149,19.143,19.142,1.01793766]
[1693883297503,8.148,19.144,19.142,1.01793766]
[1693883297710,1.59873466,19.143,19.142,1.01793766]
[1693883298004,9.74773466,19.143,19.142,1.01793766]
[1693883298186,8.149,19.143,19.142,1.01793766]
[1693883303902,8.148,19.144,19.142,1.01793766]
[1693883304104,1.72779759,19.143,19.142,1.01793766]
[1693883304406,9.87679759,19.143,19.142,1.01793766]
[1693883304607,8.149,19.143,19.142,1.01793766]
[1693883305103,9.6148411,19.143,19.142,1.01793766]
[1693883305613,8.149,19.143,19.142,1.01793766]
[1693883306199,9.61102436,19.143,19.142,1.01793766]
[1693883308706,1.46202436,19.143,19.142,1.01793766]
[1693883309709,2.7756667,19.147,19.142,1.01793766]
[1693883310698,2.7756667,19.145,19.142,1.01793766]
[1693883311114,8.148,19.145,19.142,1.01793766]
[1693883314402,27.27,19.15,19.142,25.15193766]
[1693883317618,27.27,19.15,19.145,5.703]
[1693883320819,27.27,19.15,19.144,5.704]
[1693883323526,27.27,19.15,19.143,5.704]
[1693883325724,35.416,19.15,19.142,6.72193766]
[1693883326124,35.416,19.15,19.142,1.01793766]
[1693883326612,1.51446112,19.149,19.142,1.01793766]
[1693883327122,8.146,19.149,19.142,1.01793766]
[1693883328227,55.0,19.148,19.142,1.01793766]
[1693883328418,95.8196515,19.147,19.142,1.01793766]
[1693883328620,55.0,19.146,19.142,1.01793766]
[1693883328818,38.3706515,19.145,19.142,1.01793766]
[1693883329731,55.0,19.144,19.142,1.01793766]
[1693883329925,219.81492536,19.143,19.142,1.01793766]
[1693883330234,245.91705376,19.143,19.142,1.01793766]
[1693883330529,300.91705376,19.143,19.142,1.01793766]
[1693883335922,280.91705376,19.143,19.142,1.01793766]
[1693883336336,300.91705376,19.143,19.142,1.01793766]
[1693883342335,300.91705376,19.143,19.142,0.00093766]
[1693883355845,245.91705376,19.143,19.142,0.00093766]
[1693883357338,300.91705376,19.143,19.142,0.00093766]
[1693883360845,26.1021284,19.142,19.124,1.022685]
[1693883361048,27.36,19.13,19.124,1.022685]
[1693883361241,8.155,19.129,19.123,15.5765013]
[1693883361448,34.502,19.129,19.115,5.712]
[1693883361646,8.155,19.129,19.118,25.186685]
[1693883362148,8.155,19.129,19.119,20.0]
[1693883362352,8.155,19.129,19.121,5.71]
[1693883362553,27.36,19.13,19.122,1.022685]
[1693883362755,27.36,19.13,19.122,6.732685]
[1693883362936,27.36,19.13,19.122,1.022685]
[1693883363249,27.36,19.13,19.12,6.733685]
[1693883364734,27.36,19.13,19.12,1.022685]
[1693883365048,27.36,19.13,19.12,5.711]